Cogmind - Beta 16 --- EXPLORER MODE // 2025.12.02 @ 15:31:50 Player: K.K.Y. Result: Destroyed by Autobeam Turret with Autobeam Performance ------------- Evolutions (0) 0 Regions Visited (3) 600 Robots Destroyed (21) 105 Value Destroyed (397) 397 Prototype IDs (0) 0 Alien Tech Used (0) 0 Bonus (0) 0 TOTAL SCORE: 1102 Bonus ------- None Cogmind --------- Core Integrity 0/250 Matter 273/300 Energy 57/100 System Corruption 0% Temperature Cool (6) Movement Flying (34) Location -10/Subcaves Parts ------- > --- POWER (1) -------- (None) > --- PROPULSION (3) --- Flight Unit Flight Unit Flight Unit > --- UTILITY (2) ------ Small Storage Unit Structural Scanner > --- WEAPON (2) ------- Light Assault Rifle > --- INVENTORY (8) ---- Spiked Treads Light Humpback Machine Analyzer Improved Terrain Scanner Bomb Drone Bay Light Assault Rifle Peak State ------------ > --- POWER ------------ Light Ion Engine > --- PROPULSION ------- Flight Unit Flight Unit Flight Unit > --- UTILITY ---------- Small Storage Unit Structural Scanner > --- WEAPON ----------- Mining Laser Enhanced Flamer > --- INVENTORY -------- Light Treads Spiked Treads High-capacity Storage Unit Machine Analyzer Improved Terrain Scanner Bomb Drone Bay [Rating: 12] Favorites ----------- Power Light Ion Engine Engine Light Ion Engine Propulsion Flight Unit Treads Light Treads Flight Unit Flight Unit Utility Structural Scanner Device Structural Scanner Storage Small Storage Unit Protection Light Armor Plating Weapon Light Assault Rifle Energy Gun Small Laser Ballistic Gun Light Assault Rifle Ballistic Cannon Light Cannon Launcher Rocket Launcher Special Weapon Enhanced Flamer Build | -11 -10 -10 -10 ------- Run | Yrd Mat Min Sub Slots Evolved 1 | . 1 . . Power . | . . . . Propulsion 1 | . 1 . . Utility . | . . . . Weapon . | . . . . Parts Attached 23 | 9 8 2 4 Power 2 | 1 1 . . Engine 2 | 1 1 . . Core . | . . . . Reactor . | . . . . Propulsion 7 | 2 5 . . Treads 2 | 2 . . . Leg . | . . . . Wheel . | . . . . Hover . | . . . . Flight 5 | . 5 . . Utility 4 | 4 . . . Device 1 | 1 . . . Storage 2 | 2 . . . Processor . | . . . . Hackware . | . . . . Protection 1 | 1 . . . Artifact . | . . . . Weapon 10 | 2 2 2 4 Energy Gun 3 | 1 1 . 1 Energy Cannon . | . . . . Ballistic Gun 2 | 1 . . 1 Ballistic Cannon 2 | . 1 1 . Launcher 1 | . . 1 . Special Weapon 2 | . . . 2 Impact Weapon . | . . . . Slashing Weapon . | . . . . Piercing Weapon . | . . . . Special Melee Weapon . | . . . . Unidentified Prototypes . | . . . . Parts Lost 6 | . 3 . 3 Power 2 | . 1 . 1 Propulsion 1 | . 1 . . Utility . | . . . . Weapon 3 | . 1 . 2 Highest Loss Streak 3 | . 3 . 3 To Critical Strikes . | . . . . Average Backups 5 | 2 5 7 5 Power . | . . . . Propulsion 1 | . 1 2 1 Utility 3 | 1 3 3 4 Weapon . | . 1 1 . Tool/Special . | . . . . Unused Backups 7 | . . 1 6 Power 1 | . . 1 . Propulsion 1 | . . . 1 Utility 5 | . . . 5 Weapon . | . . . . Tool/Special . | . . . . Average Slot Usage (%) 90 | . 85 92 92 Engine 11 | . 11 12 11 Treads 4 | . 12 . . Flight 29 | . 13 37 37 Device 12 | . 12 12 12 Storage 12 | . 12 12 12 Energy Gun 3 | . 10 . . Ballistic Gun 4 | . 11 . . Ballistic Cannon 2 | . . 12 . Special Weapon 8 | . . . 16 Peak Build Rating 12 | 7 10 10 12 Average Rating 9 | 5 7 9 11 On Entrance 6 | . 7 8 9 Avg Prop Armor Cover (%) . | . . . . Naked Turns . | . . . . Heaviest Build 16 | 11 12 16 13 Greatest Support 40 | 40 40 12 12 Greatest Overweight (x) 1 | 1 1 1 1 Average Overweight (x) . | . . . . Largest Inventory Capacity 10 | 10 8 8 8 Average Capacity 7 | 6 8 8 8 Most Carried 8 | 5 8 8 8 Average Carried 6 | 2 5 7 7 Final Capacity 8 | 8 8 8 8 Final Carried 8 | 4 8 8 8 Class Distribution -------------------- 70% | Hacker-Mutant 29% | Scavenger-Mutant Dominant Class ---------------- Hacker-Mutant | -10/Materials Hacker-Mutant | -10/Mines Scavenger-Mutant | -10/Subcaves Resources | -11 -10 -10 -10 ----------- Run | Yrd Mat Min Sub Matter Collected 516 | 287 125 22 82 Remotely . | . . . . Salvage Created 667 | 131 435 . 101 Parts 48 | 13 24 . 11 Haulers Intercepted . | . . . . Recyclers Shooed 2 | . 2 . . Parts Field Recycled . | . . . . Retrieved Matter . | . . . . Parts Self-Destructed . | . . . . Prevented . | . . . . Parts Restored . | . . . . Kills | -11 -10 -10 -10 ------- Run | Yrd Mat Min Sub Combat Hostiles Destroyed 14 | . 8 . 6 Guns 10 | . 8 . 2 Cannons 3 | . . . 3 Classes Destroyed 5 | 2 2 . 1 Tunneler 3 | 3 . . . Recycler 4 | 1 3 . . Swarmer 7 | . 4 . 3 Grunt 4 | . 4 . . Subdweller 3 | . . . 3 Best Kill Streak 4 | 3 4 . 3 Combat Bots Only 4 | . 4 . 3 Max Kills in Single Turn 1 | 1 1 . 1 Gunslinging . | . . . . Exploded . | . . . . Melee . | . . . . Uniques/NPCs Destroyed . | . . . . Combat | -11 -10 -10 -10 -------- Run | Yrd Mat Min Sub Hostile Shots Fired 184 | . 91 . 93 Missed 68 | . 28 . 40 Hits 116 | . 63 . 53 Projectile 116 | . 63 . 53 Critical Strikes 2 | . 1 . 1 Damage Taken 719 | . 385 . 334 Core 252 | . 116 . 136 Absorbed by Shields . | . . . . Ignored by Resistances 487 | . 259 . 228 Core Remaining (%) 100 | 100 . . . Volleys Fired 91 | 10 46 . 35 Largest 2 | 2 2 . 2 Hottest 180 | 60 60 . 180 Shots Fired 130 | 20 70 . 40 Gun 105 | 20 70 . 15 Cannon 13 | . . . 13 Launcher . | . . . . Special 12 | . . . 12 Kinetic 81 | 10 46 . 25 Thermal 49 | 10 24 . 15 Explosive . | . . . . Electromagnetic . | . . . . Robot Hit Streak 17 | 11 17 . 9 Robot Miss Streak 3 | 1 2 . 3 Penetration Max . | . . . . Secondary Targets 2 | . 2 . . Max Gunslinging Chain 1 | . 1 . . Shots Hit Robots 101 | 17 60 . 24 Core Hits 41 | 5 25 . 11 Critical Kills . | . . . . Critical Parts Destroyed . | . . . . Critical Strikes 2 | . . . 2 Burn 1 | . . . 1 Blast 1 | . . . 1 Melee Attacks . | . . . . Impact . | . . . . Slashing . | . . . . Piercing . | . . . . Sneak Attacks . | . . . . Combat Hostiles . | . . . . Follow-up Attacks . | . . . . Damage Inflicted 1049 | 168 558 . 323 Guns 803 | 168 558 . 77 Cannons 166 | . . . 166 Explosions . | . . . . Melee . | . . . . Ramming . | . . . . Kinetic 634 | 59 332 . 243 Thermal 415 | 109 226 . 80 Explosive . | . . . . Electromagnetic . | . . . . Impact . | . . . . Slashing . | . . . . Piercing . | . . . . Highest Corruption . | . . . . Average Corruption . | . . . . Corruption Purged . | . . . . Corruption Blocked . | . . . . Overload Shots . | . . . . Overflow Damage . | . . . . Projectiles . | . . . . Explosions . | . . . . Melee . | . . . . Knockbacks 2 | . . . 2 Impact . | . . . . Kinetic 2 | . . . 2 Secondary . | . . . . Self-Inflicted Damage . | . . . . Shots . | . . . . Rammed . | . . . . Targets Rammed . | . . . . Kicked . | . . . . Crushed . | . . . . Highest Temperature 142 | 79 142 . 6 Average Temperature 43 | 31 51 . 3 Received Heat Transfer 363 | . 192 . 171 Siege Activations . | . . . . Martial Activations . | . . . . Shielding Activations . | . . . . Robots Disrupted . | . . . . Combat Hostiles . | . . . . Robots Corrupted . | . . . . Combat Hostiles . | . . . . Parts Fried . | . . . . Impact Corruptions . | . . . . Robots Melted 1 | . . . 1 Combat Hostiles 1 | . . . 1 Parts Melted . | . . . . Heat Transferred 1275 | 250 525 . 500 Parts Sabotaged . | . . . . Parts Stolen . | . . . . Parts Stripped . | . . . . Power Chain Reactions . | . . . . Alert | -11 -10 -10 -10 ------- Run | Yrd Mat Min Sub Maximum Alert Level . | . . . . Low Security (%) 100 | 100 100 100 . Level 1 . | . . . . Level 2 . | . . . . Level 3 . | . . . . Level 4 . | . . . . Level 5 . | . . . . High Security . | . . . . Max Security . | . . . . Peak Influence 65 | 10 65 2 . Initial 2 | . . 2 . Average 6 | 1 10 . . Influence Increases 430 | 20 230 . 180 Destroy 0b10 Robot/C 220 | . 160 . 60 Destroy 0b10 Robot/NC 35 | 20 15 . . Destroy Leader 40 | . 40 . . Partial Spotted 15 | . 15 . . Lose Combat Pursuer 120 | . . . 120 Influence Decreases 325 | 20 220 10 75 Entered New Map 8 | . . 8 . Time Decay 267 | 20 200 2 45 Lost Part 50 | . 20 . 30 Squads Dispatched . | . . . . Investigation . | . . . . Extermination . | . . . . Reinforcement . | . . . . Assault . | . . . . Garrison . | . . . . Intercept . | . . . . Searches Triggered . | . . . . Construction Impeded . | . . . . Haulers Reinforced . | . . . . Active Scanning Responses . | . . . . Cargo Convoy Interrupts . | . . . . Stealth | -11 -10 -10 -10 --------- Run | Yrd Mat Min Sub Distress Signals . | . . . . Communications Jammed . | . . . . Distress Signals . | . . . . Times Spotted 28 | . 13 . 15 Peak Tracking Total 6 | . 5 . 6 Tactical Retreats 3 | . . . 3 Traps | -11 -10 -10 -10 ------- Run | Yrd Mat Min Sub Traps Triggered . | . . . . Indirectly . | . . . . Trap Hack Attempts . | . . . . Triggered . | . . . . Disarmed . | . . . . Reprogrammed . | . . . . Reused . | . . . . Traps Extracted . | . . . . Installed . | . . . . Triggered . | . . . . Machines | -11 -10 -10 -10 ---------- Run | Yrd Mat Min Sub Machines Disabled . | . . . . Max in Single Turn . | . . . . Machines Repaired . | . . . . Machines Dismantled . | . . . . Machines Sabotaged . | . . . . Overloaded Fab Kills . | . . . . Hacking | -11 -10 -10 -10 --------- Run | Yrd Mat Min Sub Machines Accessed 1 | . . 1 . Terminals . | . . . . Fabricators . | . . . . Repair Stations . | . . . . Recycling Units . | . . . . Scanalyzers . | . . . . Garrison Access . | . . . . Total Hacks 1 | . . 1 . Successful 1 | . . 1 . Failed . | . . . . Catastrophic . | . . . . Database Lockouts . | . . . . Manual . | . . . . Terminals . | . . . . Fabricators . | . . . . Repair Stations . | . . . . Recycling Units . | . . . . Scanalyzers . | . . . . Garrison Access . | . . . . Terminal Hacks 1 | . . 1 . Open Door 1 | . . 1 . Fabricator Hacks . | . . . . Repair Station Hacks . | . . . . Recycling Unit Hacks . | . . . . Scanalyzer . | . . . . Garrison Access Hacks . | . . . . Unauthorized Hacks . | . . . . Terminals . | . . . . Fabricators . | . . . . Repair Stations . | . . . . Recycling Units . | . . . . Scanalyzers . | . . . . Garrison Access . | . . . . Data Cores Recovered . | . . . . Used . | . . . . Hacking Detections . | . . . . Full Trace Events . | . . . . Feedback Events . | . . . . Feedback Blocked . | . . . . Robot Schematics Acquired . | . . . . Robots Built . | . . . . Authchips . | . . . . Time . | . . . . Total Robot Build Rating . | . . . . Part Schematics Acquired . | . . . . Parts Built . | . . . . Authchips . | . . . . Time . | . . . . Total Part Build Rating . | . . . . Part Studies Acquired . | . . . . Parts Repaired . | . . . . Time . | . . . . Parts Recycled . | . . . . Recycled Matter . | . . . . Retrieved Matter . | . . . . Retrieved Components . | . . . . Parts Scanalyzed . | . . . . Part Schematics Acquired . | . . . . Parts Damaged . | . . . . Bothacking | -11 -10 -10 -10 ------------ Run | Yrd Mat Min Sub Used RIF Installer . | . . . . Robots Hacked . | . . . . Non-combat . | . . . . Combat . | . . . . Robot Hacks Applied . | . . . . Relay Couplers Released . | . . . . Fabnet Peak Effective % . | . . . . Robots Rewired . | . . . . Allies Hacked . | . . . . Hacks Repelled . | . . . . Allies | -11 -10 -10 -10 -------- Run | Yrd Mat Min Sub Total Allies . | . . . . Largest Group . | . . . . Highest-Rated Group . | . . . . Highest-Rated Ally . | . . . . Total Orders . | . . . . Ally Attacks . | . . . . Total Damage . | . . . . Kills . | . . . . Allies Corrupted . | . . . . Allies Melted . | . . . . Intel | -11 -10 -10 -10 ------- Run | Yrd Mat Min Sub Active Infowar (turns) 2133 | 128 694 343 968 Structural 2133 | 128 694 343 968 Robot Analysis Total . | . . . . Derelict Logs Recovered . | . . . . Drone Launches . | . . . . Drone Recoveries . | . . . . Exploration | -11 -10 -10 -10 ------------- Run | Yrd Mat Min Sub Turns Passed 2159 | 154 694 343 968 Spaces Moved 1884 | 80 589 527 688 Core 25 | 25 . . . Treads 228 | 55 173 . . Legs . | . . . . Wheels . | . . . . Hover . | . . . . Flight 1631 | . 416 527 688 Fastest Speed 34 | 50 34 34 34 Average Speed 62 | 127 95 47 37 Slowest Speed 160 | 160 160 114 114 Overloaded Moves . | . . . . Propulsion Burnouts . | . . . . Robots Hopped 3 | . . 2 1 Potential Cave-ins . | . . . . Cave-ins Triggered . | . . . . Exploration Rate (%) 54 | 4 86 97 29 Regions Visited 3 Branch Regions 2 Pre-discovered Areas . | . . . . Known Exits Taken 3 | 1 1 1 . Unknown Exits Taken . | . . . . Scrap Searched 5 | . . 2 3 Spaces Dug . | . . . . Terrain Destroyed . | . . . . Melee . | . . . . Projectile . | . . . . AOE . | . . . . Terrain Rammed . | . . . . Walls Destroyed . | . . . . Machines Disabled . | . . . . Actions | -11 -10 -10 -10 --------- Run | Yrd Mat Min Sub Total 2738 | 114 659 620 1345 Wait 704 | 6 6 86 606 Move 1875 | 79 588 522 686 Hop 3 | . . 2 1 Pick Up 21 | 8 6 2 5 Fast Attach 10 | 3 3 2 2 Attach 13 | 6 4 . 3 Detach 6 | 2 2 1 1 Swap 1 | . 1 . . Drop 14 | . 3 5 6 Fire 91 | 10 46 . 35 Melee . | . . . . Ram . | . . . . Kick . | . . . . Crush . | . . . . Escape Stasis . | . . . . Rewire . | . . . . Trap . | . . . . Miscellaneous . | . . . . Route ------- -11/Scrapyard -10/Materials (discovered 6 exits: *Mat x3 / *Min x2 / Sub) -10/Mines (discovered 4 exits: *Mat x2 / Exi / *Sub) -10/Subcaves (discovered 2 exits: *Mat / *Rec) History --------- Turn | Location | Event 35 | -11/Scrapyard | Identified exit to Materials 35 | -11/Scrapyard | Discovered exit to Materials (range 15) 155 | -11/Scrapyard | Entered Materials 155 | -10/Materials | Evolved 1 slot: Propulsion x1 275 | -10/Materials | Identified exit to Materials 275 | -10/Materials | Discovered exit to Materials (range 10) 308 | -10/Materials | Build established: Hacker-Mutant 370 | -10/Materials | Identified exit to Mines 370 | -10/Materials | Discovered exit to Mines (range 5) 468 | -10/Materials | Identified exit to Subcaves 468 | -10/Materials | Discovered exit to Subcaves (range 6) 501 | -10/Materials | Discovered exit to Materials (range 15) 639 | -10/Materials | Discovered exit to Materials (range 4) 655 | -10/Materials | Derelicts attacked the area 762 | -10/Materials | Lost 3 parts (1p1n1w) 774 | -10/Materials | Discovered exit to Mines (range 7) 849 | -10/Materials | Entered Mines 862 | -10/Mines | Met a Derelict bent on vengeance 877 | -10/Mines | Deemed a non-threat by the Exiles lab entrance 877 | -10/Mines | Identified exit to Exiles 877 | -10/Mines | Discovered exit to Exiles (range 6) 885 | -10/Mines | Received a Rocket Launcher from a helpful Derelict 988 | -10/Mines | Discovered exit to Materials (range 15) 1059 | -10/Mines | Found the Drone Emporium 1061 | -10/Mines | Found Prototype Device 1145 | -10/Mines | Discovered exit to Materials (range 6) 1176 | -10/Mines | Discovered exit to Subcaves (range 8) 1192 | -10/Mines | Entered Subcaves 1193 | -10/Subcaves | Approached by a straggling Scientist 1202 | -10/Subcaves | Shifting Twisted Machinery released Lgt. Humpback 1202 | -10/Subcaves | Shifting Twisted Machinery released Piercing Trap 1204 | -10/Subcaves | Ambushed by Subdwellers from Twisted Machinery 1221 | -10/Subcaves | Core integrity fell below 50% 1275 | -10/Subcaves | Identified exit to Materials 1275 | -10/Subcaves | Discovered exit to Materials (range 8) 1368 | -10/Subcaves | Curiously followed by a Cobbler waking with a query about "LVR3C" 1707 | -10/Subcaves | Disturbed a concealed Subdweller 1918 | -10/Subcaves | Build established: Scavenger-Mutant 2118 | -10/Subcaves | Core integrity fell below 20% 2154 | -10/Subcaves | Identified exit to Recycling 2154 | -10/Subcaves | Discovered exit to Recycling (range 13) 2160 | -10/Subcaves | Destroyed by Autobeam Turret with Autobeam Last Messages --------------- 01707_ 6Q-6SJ(O) collects matter. 01710_ OO-J09(R) overheating. 01711_ OO-J09(R) critical meltdown. 01721_ 6Q-6SJ(O) collects matter. 01753_ 6Q-6SJ(O) puts together Sub. Machine Gun. 01793_ 6Q-6SJ(O) puts together Battle Cannon. 01803_ 6Q-6SJ(O) collects matter. 01833_ 6Q-6SJ(O) puts together Sub. Optics. 01864_ 6Q-6SJ(O) collects matter. 01873_ 6Q-6SJ(O) puts together Scrap Shield. 01994_ 6Q-6SJ(O) collects matter. 02114_ Lgt. Ion Engine destroyed. 02116_ S-10 Pest destroyed. 02127_ Mining Laser destroyed. 02128_ S-10 Pest destroyed. 02130_ Enh. Flamer destroyed. 02131_ Acquired Lgt. Assault Rifle. 02135_ S-10 Pest destroyed. 02150_ Acquired Lgt. Assault Rifle. 02154_ EXIT=FOUND: RECYCLING Map ----- +----------------------------------------------------+ | ?????????????????????????????????????????????????? | | ?????????????????????????????????????????????????? | | ?????????????????????????????????????????????????? | | ?????????????????????????????????????????????????? | | ?????????????????????????????????????????????????? | | ?????????????????????????????????????????????????? | | ?????????????????????????????????????????????????? | | ?????????????????????????????????????????????????? | | ?????????????????????????????????????????????????? | | ?????????????????????????????????????????????????? | | ???????????????????????????????????????????? ???? | | ??????????????????????????????????????###### ??? | | ???????????????######?????????????????###### ??? | | ????????????##########????????????###### ??? | | ????????????##### #####?????????###### ??? | | ???????????### ####?????????## ## ??? | | ???????????### ############ ??? | | ???????????## ############^ ^ ##### | | ?????????????## ### #### ##### | | ?????????????## ## ^ | | ?????????????###?? ^ ## # | | ????????????????????## ## ## ## | | ????????????????????#### ## ^ ### ### | | #####???????##"???? ##### ###% ### ## | | #########???##" ###### ## O | | #######?###""t @ % | | ## ###?##> =% | | ##?###""t ##= ## ## | | ##??##" ############################# | | ##??##" ######################### # | | ###??##"""?????????????????????????## | | #########???????????????????????????## | | #########???????????????????????????## # | | ### ###???????????????????????????### ### | | % ### ##???????????????????????????### | | ### ## %%###???????????????????????????## | | ###% ### ###???????????????????????????## | | #### ### ##???????????????????????????## | | ###### ### ##???????????????????????????## | | ####### ### ##???????????????????????????### # | | ##??### ## ##???????????????????????????### # | | ###?## ###????????????????????????????## | | ###### ###????????????????????????????## | | ###### ##?????????????????????????????## | | ###### ##?????????????????????????????## | | #### ###?????????????????????????????### # | | ### ###?????????????????????????????## # | | ##??????????????????????????????### # | | ##??????????????????????????????### | | ###??????????????????????????????## | +----------------------------------------------------+ Best States ------------- Heat Dissipation 25 Energy Generation 10 Energy Capacity 125 Matter Stores 300 Matter Capacity 300 Sight Range 16 Terrain Scan Density 10 Armor Coverage 150 Resistance: KI 35 Resistance: TH 35 Resistance: EX 35 Resistance: EM 35 Resistance: I 35 Resistance: S 35 Resistance: P 35 Evasion (%) 63 Recoil Reduction 2 Offensive Hacking 20 Item Schematics ----------------- None Robot Schematics ------------------ None Fabricated ------------ Nothing Repaired ---------- Nothing Studied --------- None Alien Tech Used ----------------- None Achievements -------------- None Challenges ------------ None Game ------ Seed SapperCobblerThrower Manual? 0 Play Time 00:17:34 Cumulative 155.5 hours Start 2025.12.02 @ 15:19:10 End 2025.12.02 @ 15:31:50 Sessions 1 Manual Loads 0 Difficulty Explorer Special Mode None Game No. 198 Rogue 0 Adventurer 0 Explorer 198 Win Type - Total 0 Types 0/0/0/0/0/0/0/0/0/0 Lore% 70 Gallery% 66 Achievement% 52 Wizard Run 0 Options --------- Layout 1 ASCII 0 Keyboard 0 Movement Mouse Keybinds 0 Fullscreen 1 Font 24/Smallcaps Map View 50x35 Zoom Use 0% Tactical HUD 1 Map Filters NONE Filters NONE Steam 1 RUN: bce28126-6413-485c-a253-b880b13cc6e8